[Event "December 5 Early 2023"]
[Site "https://www.chess.com"]
[Date "2023.12.05"]
[Round "8"]
[White "Bochnicka, Vladimir"]
[Black "Sharapov, Evgeny"]
[Result "1-0"]
[Board "115"]
[TimeControl "180+1"]
[WhiteFideId "14943450"]
[BlackFideId "14103133"]
[WhiteElo "2412"]
[BlackElo "2538"]
[WhiteTeam "SVK"]
[BlackTeam "UKR"]
[WhiteClock "0:01:27"]
[BlackClock "0:01:03"]

1. e4 {[%clk 0:03:00]}  c5 {[%clk 0:03:00]} 2. Nf3 {[%clk 0:02:59]}  d6 {[%clk 0:03:00]} 3. d4 {[%clk 0:02:59]}  cxd4 {[%clk 0:03:00]} 4. Nxd4 {[%clk 0:03:00]}  Nf6 {[%clk 0:03:01]} 5. Nc3 {[%clk 0:02:59]}  Nc6 {[%clk 0:03:01]} 6. f3 {[%clk 0:02:59]}  e5 {[%clk 0:03:00]} 7. Nb3 {[%clk 0:02:59]}  Be7 {[%clk 0:03:00]} 8. Nd5 {[%clk 0:02:57]}  Nxd5 {[%clk 0:03:00]} 9. exd5 {[%clk 0:02:58]}  Nb8 {[%clk 0:03:00]} 10. Be2 {[%clk 0:02:56]}  O-O {[%clk 0:03:00]} 11. Be3 {[%clk 0:02:56]}  a5 {[%clk 0:03:00]} 12. a4 {[%clk 0:02:54]}  f5 {[%clk 0:02:59]} 13. O-O {[%clk 0:02:55]}  Nd7 {[%clk 0:02:58]} 14. c4 {[%clk 0:02:52]}  Qc7 {[%clk 0:02:52]} 15. Rc1 {[%clk 0:02:39]}  b6 {[%clk 0:02:37]} 16. Nd2 {[%clk 0:02:32]}  Nc5 {[%clk 0:02:37]} 17. Nb1 {[%clk 0:02:30]}  Bd7 {[%clk 0:02:34]} 18. Nc3 {[%clk 0:02:30]}  Rae8 {[%clk 0:02:32]} 19. Kh1 {[%clk 0:02:20]}  Bf6 {[%clk 0:02:30]} 20. b3 {[%clk 0:02:09]}  e4 {[%clk 0:02:30]} 21. f4 {[%clk 0:02:08]}  Qd8 {[%clk 0:02:23]} 22. Rg1 {[%clk 0:02:01]}  Qe7 {[%clk 0:02:22]} 23. g4 {[%clk 0:01:58]}  fxg4 {[%clk 0:02:21]} 24. Bxg4 {[%clk 0:01:58]}  Bxg4 {[%clk 0:02:20]} 25. Qxg4 {[%clk 0:01:58]}  Nd3 {[%clk 0:02:12]} 26. Rc2 {[%clk 0:01:58]}  Nc5 {[%clk 0:02:07]} 27. Nb5 {[%clk 0:01:50]}  Rf7 {[%clk 0:01:59]} 28. Nd4 {[%clk 0:01:45]}  Bxd4 {[%clk 0:01:54]} 29. Bxd4 {[%clk 0:01:43]}  e3 {[%clk 0:01:51]} 30. Rcg2 {[%clk 0:01:40]}  e2 {[%clk 0:01:37]} 31. Bxg7 {[%clk 0:01:33]}  h5 {[%clk 0:01:25]} 32. Qxh5 {[%clk 0:01:26]}  Rxg7 {[%clk 0:01:05]} 33. Rxg7+ {[%clk 0:01:26]}  Qxg7 {[%clk 0:01:05]} 34. Qxe8+ {[%clk 0:01:26]}  Kh7 {[%clk 0:01:05]} 35. Rxg7+ {[%clk 0:01:27]}  Kxg7 {[%clk 0:01:03]} 36. Qxe2 {[%clk 0:01:27]} 1-0

[Event "December 5 Early 2023"]
[Site "https://www.chess.com"]
[Date "2023.12.05"]
[Round "8"]
[White "Manon-og, Ramon Jr."]
[Black "Gavrilov, Maxim"]
[Result "1-0"]
[Board "118"]
[TimeControl "180+1"]
[WhiteFideId "5200776"]
[BlackFideId "24271454"]
[WhiteElo "2390"]
[BlackElo "2527"]
[WhiteTeam "PHI"]
[BlackTeam "RUS"]
[WhiteClock "0:01:46"]
[BlackClock "0:00:15"]

1. e4 {[%clk 0:02:57]}  c5 {[%clk 0:02:59]} 2. Nf3 {[%clk 0:02:57]}  d6 {[%clk 0:02:59]} 3. Bb5+ {[%clk 0:02:57]}  Nc6 {[%clk 0:02:59]} 4. O-O {[%clk 0:02:56]}  Bd7 {[%clk 0:02:58]} 5. Nc3 {[%clk 0:02:56]}  Nf6 {[%clk 0:02:56]} 6. Bxc6 {[%clk 0:02:53]}  Bxc6 {[%clk 0:02:56]} 7. e5 {[%clk 0:02:54]}  dxe5 {[%clk 0:02:56]} 8. Nxe5 {[%clk 0:02:54]}  Qc7 {[%clk 0:02:57]} 9. Nxc6 {[%clk 0:02:52]}  Qxc6 {[%clk 0:02:56]} 10. d3 {[%clk 0:02:49]}  e6 {[%clk 0:02:51]} 11. Bg5 {[%clk 0:02:48]}  Be7 {[%clk 0:02:51]} 12. Ne4 {[%clk 0:02:28]}  Nxe4 {[%clk 0:02:36]} 13. Bxe7 {[%clk 0:02:29]}  Kxe7 {[%clk 0:02:35]} 14. dxe4 {[%clk 0:02:23]}  Qxe4 {[%clk 0:02:35]} 15. Re1 {[%clk 0:02:23]}  Qc6 {[%clk 0:02:32]} 16. Qg4 {[%clk 0:02:20]}  g6 {[%clk 0:01:42]} 17. Qg5+ {[%clk 0:02:06]}  f6 {[%clk 0:01:40]} 18. Qh6 {[%clk 0:02:06]}  Kf7 {[%clk 0:01:37]} 19. Rad1 {[%clk 0:02:04]}  Rae8 {[%clk 0:00:58]} 20. Re3 {[%clk 0:01:55]}  Re7 {[%clk 0:00:43]} 21. Red3 {[%clk 0:01:54]}  f5 {[%clk 0:00:23]} 22. Rd8 {[%clk 0:01:48]}  Rxd8 {[%clk 0:00:21]} 23. Rxd8 {[%clk 0:01:49]}  Qe4 {[%clk 0:00:15]} 24. Qf8# {[%clk 0:01:46]} 1-0

[Event "December 5 Early 2023"]
[Site "https://www.chess.com"]
[Date "2023.12.05"]
[Round "8"]
[White "Kleibel, Uwe"]
[Black "Rangel, Daniel"]
[Result "0-1"]
[Board "121"]
[TimeControl "180+1"]
[WhiteFideId "1270982"]
[BlackFideId "2124475"]
[WhiteElo "2378"]
[BlackElo "2519"]
[WhiteTeam "GER"]
[BlackTeam "BRA"]
[WhiteClock "0:01:21"]
[BlackClock "0:00:08"]

1. e4 {[%clk 0:02:56]}  e5 {[%clk 0:02:59]} 2. Nf3 {[%clk 0:02:56]}  Nc6 {[%clk 0:02:59]} 3. d4 {[%clk 0:02:56]}  exd4 {[%clk 0:02:57]} 4. Nxd4 {[%clk 0:02:57]}  Nf6 {[%clk 0:02:57]} 5. Nxc6 {[%clk 0:02:55]}  dxc6 {[%clk 0:02:53]} 6. Qxd8+ {[%clk 0:02:54]}  Kxd8 {[%clk 0:02:54]} 7. f3 {[%clk 0:02:54]}  Be6 {[%clk 0:02:52]} 8. Nd2 {[%clk 0:02:53]}  Bc5 {[%clk 0:02:48]} 9. Bc4 {[%clk 0:02:48]}  Ke7 {[%clk 0:02:46]} 10. Ke2 {[%clk 0:02:46]}  Rad8 {[%clk 0:02:43]} 11. Bxe6 {[%clk 0:02:45]}  Kxe6 {[%clk 0:02:42]} 12. Nb3 {[%clk 0:02:46]}  Bb6 {[%clk 0:02:41]} 13. a4 {[%clk 0:02:46]}  a5 {[%clk 0:02:10]} 14. Be3 {[%clk 0:02:45]}  Nd7 {[%clk 0:02:06]} 15. Rhd1 {[%clk 0:02:44]}  Ne5 {[%clk 0:02:05]} 16. Bxb6 {[%clk 0:02:37]}  cxb6 {[%clk 0:02:03]} 17. Nd4+ {[%clk 0:02:38]}  Kf6 {[%clk 0:01:56]} 18. b3 {[%clk 0:02:37]}  g6 {[%clk 0:01:51]} 19. f4 {[%clk 0:02:29]}  Nd7 {[%clk 0:01:50]} 20. e5+ {[%clk 0:02:28]}  Ke7 {[%clk 0:01:50]} 21. Nf3 {[%clk 0:02:22]}  Nc5 {[%clk 0:01:49]} 22. Ke3 {[%clk 0:02:20]}  Na6 {[%clk 0:01:44]} 23. Rxd8 {[%clk 0:02:12]}  Rxd8 {[%clk 0:01:42]} 24. Ng5 {[%clk 0:02:13]}  Nb4 {[%clk 0:01:41]} 25. Rc1 {[%clk 0:02:12]}  Nd5+ {[%clk 0:01:22]} 26. Kf3 {[%clk 0:02:10]}  Nc3 {[%clk 0:01:23]} 27. Ne4 {[%clk 0:02:08]}  Nxe4 {[%clk 0:01:20]} 28. Kxe4 {[%clk 0:02:08]}  Rd2 {[%clk 0:01:20]} 29. Kf3 {[%clk 0:02:07]}  Ke6 {[%clk 0:01:18]} 30. h4 {[%clk 0:02:05]}  h5 {[%clk 0:01:18]} 31. g3 {[%clk 0:02:05]}  Kf5 {[%clk 0:01:17]} 32. Ke3 {[%clk 0:02:05]}  Rg2 {[%clk 0:01:13]} 33. Kf3 {[%clk 0:02:05]}  Rh2 {[%clk 0:01:13]} 34. Rd1 {[%clk 0:02:00]}  Rxc2 {[%clk 0:01:12]} 35. Rd6 {[%clk 0:02:00]}  Rc3+ {[%clk 0:01:10]} 36. Kf2 {[%clk 0:02:00]}  Ke4 {[%clk 0:00:59]} 37. e6 {[%clk 0:01:50]}  Rc2+ {[%clk 0:00:57]} 38. Ke1 {[%clk 0:01:50]}  fxe6 {[%clk 0:00:55]} 39. Rxe6+ {[%clk 0:01:50]}  Kf3 {[%clk 0:00:52]} 40. Rxg6 {[%clk 0:01:50]}  Rc5 {[%clk 0:00:40]} 41. Rg5 {[%clk 0:01:48]}  Rc3 {[%clk 0:00:26]} 42. f5 {[%clk 0:01:46]}  Ke4 {[%clk 0:00:26]} 43. f6 {[%clk 0:01:44]}  Rf3 {[%clk 0:00:26]} 44. Rxh5 {[%clk 0:01:35]}  Rxf6 {[%clk 0:00:20]} 45. Rh7 {[%clk 0:01:35]}  Kd5 {[%clk 0:00:15]} 46. Rxb7 {[%clk 0:01:34]}  Rf3 {[%clk 0:00:15]} 47. Rg7 {[%clk 0:01:30]}  Rxb3 {[%clk 0:00:14]} 48. h5 {[%clk 0:01:30]}  Rb2 {[%clk 0:00:08]} 49. g4 {[%clk 0:01:26]}  Rh2 {[%clk 0:00:08]} 50. Kf1 {[%clk 0:01:23]}  b5 {[%clk 0:00:09]} 51. Kg1 {[%clk 0:01:23]}  Rh4 {[%clk 0:00:08]} 52. Kg2 {[%clk 0:01:16]}  b4 {[%clk 0:00:09]} 53. Kg3 {[%clk 0:01:16]}  Rh1 {[%clk 0:00:09]} 54. Ra7 {[%clk 0:01:14]}  b3 {[%clk 0:00:08]} 55. Rb7 {[%clk 0:01:13]}  Kc4 {[%clk 0:00:06]} 56. Kf4 {[%clk 0:01:11]}  c5 {[%clk 0:00:05]} 57. Kg5 {[%clk 0:01:12]}  Kc3 {[%clk 0:00:04]} 58. Kg6 {[%clk 0:01:11]}  c4 {[%clk 0:00:05]} 59. g5 {[%clk 0:01:12]}  b2 {[%clk 0:00:03]} 60. h6 {[%clk 0:01:12]}  b1=Q+ {[%clk 0:00:03]} 61. Rxb1 {[%clk 0:01:12]}  Rxb1 {[%clk 0:00:04]} 62. h7 {[%clk 0:01:12]}  Rh1 {[%clk 0:00:04]} 63. Kg7 {[%clk 0:01:13]}  Kb3 {[%clk 0:00:05]} 64. g6 {[%clk 0:01:13]}  c3 {[%clk 0:00:05]} 65. h8=Q {[%clk 0:01:14]}  Rxh8 {[%clk 0:00:04]} 66. Kxh8 {[%clk 0:01:15]}  c2 {[%clk 0:00:04]} 67. g7 {[%clk 0:01:16]}  c1=Q {[%clk 0:00:05]} 68. g8=Q+ {[%clk 0:01:17]}  Qc4 {[%clk 0:00:05]} 69. Kg7 {[%clk 0:01:18]}  Qxg8+ {[%clk 0:00:04]} 70. Kxg8 {[%clk 0:01:19]}  Kxa4 {[%clk 0:00:04]} 71. Kf7 {[%clk 0:01:20]}  Kb3 {[%clk 0:00:05]} 72. Ke6 {[%clk 0:01:21]}  a4 {[%clk 0:00:06]} 73. Ke5 {[%clk 0:01:21]}  a3 {[%clk 0:00:07]} 74. Kd4 {[%clk 0:01:21]}  a2 {[%clk 0:00:08]} 0-1

[Event "December 5 Early 2023"]
[Site "https://www.chess.com"]
[Date "2023.12.05"]
[Round "8"]
[White "Chernomordik, Pavel"]
[Black "Melikhov, Evgeny V."]
[Result "0-1"]
[Board "122"]
[TimeControl "180+1"]
[WhiteFideId "2804530"]
[BlackFideId "4122046"]
[WhiteElo "2518"]
[BlackElo "2380"]
[WhiteTeam "ISR"]
[BlackTeam "GRE"]
[WhiteClock "0:00:35"]
[BlackClock "0:01:09"]

1. e4 {[%clk 0:03:00]}  e5 {[%clk 0:02:57]} 2. Nf3 {[%clk 0:03:00]}  Nc6 {[%clk 0:02:57]} 3. Bb5 {[%clk 0:03:00]}  a6 {[%clk 0:02:56]} 4. Ba4 {[%clk 0:03:00]}  Nf6 {[%clk 0:02:56]} 5. Nc3 {[%clk 0:02:58]}  b5 {[%clk 0:02:51]} 6. Bb3 {[%clk 0:02:57]}  Be7 {[%clk 0:02:51]} 7. d3 {[%clk 0:02:53]}  d6 {[%clk 0:02:49]} 8. a3 {[%clk 0:02:51]}  O-O {[%clk 0:02:46]} 9. h3 {[%clk 0:02:51]}  Be6 {[%clk 0:02:45]} 10. Nd5 {[%clk 0:02:47]}  Bxd5 {[%clk 0:02:45]} 11. exd5 {[%clk 0:02:46]}  Nd4 {[%clk 0:02:45]} 12. Ba2 {[%clk 0:02:39]}  Nd7 {[%clk 0:02:35]} 13. O-O {[%clk 0:02:36]}  Nxf3+ {[%clk 0:02:10]} 14. Qxf3 {[%clk 0:02:34]}  f5 {[%clk 0:02:09]} 15. Bd2 {[%clk 0:02:27]}  Bg5 {[%clk 0:02:08]} 16. Bc3 {[%clk 0:02:24]}  Qf6 {[%clk 0:02:00]} 17. a4 {[%clk 0:02:18]}  Rae8 {[%clk 0:01:55]} 18. axb5 {[%clk 0:02:17]}  axb5 {[%clk 0:01:56]} 19. b4 {[%clk 0:02:13]}  Qg6 {[%clk 0:01:51]} 20. Bb3 {[%clk 0:02:04]}  e4 {[%clk 0:01:47]} 21. dxe4 {[%clk 0:01:59]}  fxe4 {[%clk 0:01:47]} 22. Qg4 {[%clk 0:01:59]}  Nf6 {[%clk 0:01:40]} 23. Qd1 {[%clk 0:01:50]}  e3 {[%clk 0:01:33]} 24. f4 {[%clk 0:01:10]}  e2 {[%clk 0:01:31]} 25. Qd4 {[%clk 0:01:06]}  exf1=Q+ {[%clk 0:01:29]} 26. Rxf1 {[%clk 0:01:05]}  Bh4 {[%clk 0:01:23]} 27. f5 {[%clk 0:01:01]}  Qh6 {[%clk 0:01:15]} 28. Bd2 {[%clk 0:00:53]}  Bg5 {[%clk 0:01:14]} 29. Bxg5 {[%clk 0:00:52]}  Qxg5 {[%clk 0:01:14]} 30. Rf3 {[%clk 0:00:47]}  Re2 {[%clk 0:01:10]} 31. Rf2 {[%clk 0:00:42]}  Rxf2 {[%clk 0:01:10]} 32. Qxf2 {[%clk 0:00:35]}  Re8 {[%clk 0:01:09]} 0-1

[Event "December 5 Early 2023"]
[Site "https://www.chess.com"]
[Date "2023.12.05"]
[Round "8"]
[White "Kopczynski, Michal"]
[Black "Seder, Mohammed"]
[Result "1-0"]
[Board "123"]
[TimeControl "180+1"]
[WhiteFideId "1124200"]
[BlackFideId "11505567"]
[WhiteElo "2494"]
[BlackElo "2364"]
[WhiteTeam "POL"]
[BlackTeam "PLE"]
[WhiteClock "0:02:28"]
[BlackClock "0:01:55"]

1. e4 {[%clk 0:03:00]}  c6 {[%clk 0:02:59]} 2. d4 {[%clk 0:03:01]}  d5 {[%clk 0:02:59]} 3. Nc3 {[%clk 0:03:02]}  Nf6 {[%clk 0:02:57]} 4. e5 {[%clk 0:03:02]}  Nfd7 {[%clk 0:02:56]} 5. f4 {[%clk 0:03:03]}  e6 {[%clk 0:02:55]} 6. f5 {[%clk 0:03:02]}  c5 {[%clk 0:02:53]} 7. fxe6 {[%clk 0:03:02]}  fxe6 {[%clk 0:02:54]} 8. Bd3 {[%clk 0:02:58]}  g6 {[%clk 0:02:34]} 9. Qg4 {[%clk 0:02:57]}  Qe7 {[%clk 0:02:22]} 10. Nb5 {[%clk 0:02:49]}  Nb6 {[%clk 0:01:57]} 11. Nd6+ {[%clk 0:02:29]}  Kd8 {[%clk 0:01:55]} 12. Bg5 {[%clk 0:02:28]} 1-0

[Event "December 5 Early 2023"]
[Site "https://www.chess.com"]
[Date "2023.12.05"]
[Round "8"]
[White "Mohammed, Zozek Salah Mohammed"]
[Black "Herman, Matthew"]
[Result "0-1"]
[Board "124"]
[TimeControl "180+1"]
[WhiteFideId "4803361"]
[BlackFideId "2028964"]
[WhiteElo "2361"]
[BlackElo "2489"]
[WhiteTeam "IRQ"]
[BlackTeam "USA"]
[WhiteClock "0:00:29"]
[BlackClock "0:00:05"]

1. d4 {[%clk 0:03:00]}  Nf6 {[%clk 0:03:00]} 2. Nf3 {[%clk 0:02:56]}  g6 {[%clk 0:03:00]} 3. g3 {[%clk 0:02:56]}  Bg7 {[%clk 0:03:01]} 4. Bg2 {[%clk 0:02:57]}  O-O {[%clk 0:03:01]} 5. O-O {[%clk 0:02:58]}  d6 {[%clk 0:03:02]} 6. b3 {[%clk 0:02:58]}  b5 {[%clk 0:02:59]} 7. Bb2 {[%clk 0:02:57]}  Bb7 {[%clk 0:02:59]} 8. c4 {[%clk 0:02:55]}  b4 {[%clk 0:02:49]} 9. Nbd2 {[%clk 0:02:53]}  a5 {[%clk 0:02:48]} 10. a3 {[%clk 0:02:49]}  Nbd7 {[%clk 0:02:40]} 11. Qc2 {[%clk 0:02:47]}  e6 {[%clk 0:02:26]} 12. axb4 {[%clk 0:02:46]}  axb4 {[%clk 0:02:26]} 13. Rxa8 {[%clk 0:02:47]}  Bxa8 {[%clk 0:02:23]} 14. e4 {[%clk 0:02:45]}  Qb8 {[%clk 0:02:16]} 15. e5 {[%clk 0:02:40]}  dxe5 {[%clk 0:02:15]} 16. Nxe5 {[%clk 0:02:30]}  Bxg2 {[%clk 0:01:59]} 17. Kxg2 {[%clk 0:02:30]}  Qb7+ {[%clk 0:01:05]} 18. f3 {[%clk 0:02:23]}  Nxe5 {[%clk 0:00:49]} 19. dxe5 {[%clk 0:02:22]}  Ng4 {[%clk 0:00:49]} 20. Re1 {[%clk 0:02:20]}  Rd8 {[%clk 0:00:49]} 21. Ne4 {[%clk 0:01:47]}  Nh6 {[%clk 0:00:12]} 22. Rd1 {[%clk 0:01:41]}  Ra8 {[%clk 0:00:11]} 23. Nf6+ {[%clk 0:01:32]}  Bxf6 {[%clk 0:00:11]} 24. exf6 {[%clk 0:01:33]}  Nf5 {[%clk 0:00:05]} 25. Qd3 {[%clk 0:01:23]}  h5 {[%clk 0:00:06]} 26. Rd2 {[%clk 0:01:17]}  g5 {[%clk 0:00:05]} 27. Kh3 {[%clk 0:00:52]}  Kh7 {[%clk 0:00:04]} 28. g4 {[%clk 0:00:51]}  hxg4+ {[%clk 0:00:04]} 29. fxg4 {[%clk 0:00:52]}  Kg6 {[%clk 0:00:05]} 30. gxf5+ {[%clk 0:00:51]}  exf5 {[%clk 0:00:06]} 31. Qd5 {[%clk 0:00:48]}  Rh8+ {[%clk 0:00:06]} 32. Kg2 {[%clk 0:00:48]}  Qa7 {[%clk 0:00:05]} 33. Rf2 {[%clk 0:00:46]}  Rxh2+ {[%clk 0:00:03]} 34. Kxh2 {[%clk 0:00:46]}  Qxf2+ {[%clk 0:00:03]} 35. Qg2 {[%clk 0:00:46]}  Qf4+ {[%clk 0:00:04]} 36. Kg1 {[%clk 0:00:46]}  Qe3+ {[%clk 0:00:03]} 37. Qf2 {[%clk 0:00:46]}  Qxb3 {[%clk 0:00:04]} 38. c5 {[%clk 0:00:45]}  Qc4 {[%clk 0:00:04]} 39. Kg2 {[%clk 0:00:41]}  b3 {[%clk 0:00:05]} 40. Kg1 {[%clk 0:00:38]}  f4 {[%clk 0:00:05]} 41. Qd4 {[%clk 0:00:35]}  Qxd4+ {[%clk 0:00:03]} 42. Bxd4 {[%clk 0:00:34]}  Kf5 {[%clk 0:00:04]} 43. Kf2 {[%clk 0:00:34]}  Ke4 {[%clk 0:00:05]} 44. Bb2 {[%clk 0:00:34]}  g4 {[%clk 0:00:05]} 45. Ba3 {[%clk 0:00:31]}  Kd3 {[%clk 0:00:05]} 46. Bc1 {[%clk 0:00:31]}  Kc2 {[%clk 0:00:04]} 47. Ba3 {[%clk 0:00:31]}  b2 {[%clk 0:00:04]} 48. Bxb2 {[%clk 0:00:29]}  Kxb2 {[%clk 0:00:05]} 0-1

[Event "December 5 Early 2023"]
[Site "https://www.chess.com"]
[Date "2023.12.05"]
[Round "8"]
[White "Mazurkiewicz, Michal"]
[Black "yaguigor"]
[Result "1-0"]
[Board "126"]
[TimeControl "180+1"]
[WhiteFideId "1124943"]
[WhiteElo "2487"]
[BlackElo "2326"]
[WhiteTeam "POL"]
[WhiteClock "0:00:26"]
[BlackClock "0:00:43"]

1. e4 {[%clk 0:03:00]}  e5 {[%clk 0:02:58]} 2. Nf3 {[%clk 0:03:00]}  Nc6 {[%clk 0:02:58]} 3. Bb5 {[%clk 0:03:00]}  a6 {[%clk 0:02:58]} 4. Bxc6 {[%clk 0:03:00]}  dxc6 {[%clk 0:02:57]} 5. O-O {[%clk 0:03:01]}  Qd6 {[%clk 0:02:56]} 6. Na3 {[%clk 0:03:01]}  b5 {[%clk 0:02:52]} 7. c3 {[%clk 0:03:01]}  Bg4 {[%clk 0:02:48]} 8. Nc2 {[%clk 0:03:00]}  O-O-O {[%clk 0:02:37]} 9. Ne3 {[%clk 0:02:55]}  Bxf3 {[%clk 0:02:31]} 10. Qxf3 {[%clk 0:02:55]}  f6 {[%clk 0:02:32]} 11. d4 {[%clk 0:02:49]}  exd4 {[%clk 0:02:31]} 12. cxd4 {[%clk 0:02:49]}  Qxd4 {[%clk 0:02:21]} 13. Rd1 {[%clk 0:02:41]}  Qe5 {[%clk 0:02:21]} 14. Qg4+ {[%clk 0:01:50]}  f5 {[%clk 0:02:18]} 15. Rxd8+ {[%clk 0:01:49]}  Kxd8 {[%clk 0:02:17]} 16. Nxf5 {[%clk 0:01:50]}  Nf6 {[%clk 0:02:16]} 17. Bg5 {[%clk 0:01:51]}  h6 {[%clk 0:01:42]} 18. Rd1+ {[%clk 0:01:47]}  Ke8 {[%clk 0:01:40]} 19. Bxf6 {[%clk 0:01:37]}  Qxf6 {[%clk 0:01:40]} 20. Nh4 {[%clk 0:00:48]}  Kf7 {[%clk 0:01:23]} 21. Ng6 {[%clk 0:00:38]}  Qxg6 {[%clk 0:00:52]} 22. Rd7+ {[%clk 0:00:35]}  Kf6 {[%clk 0:00:52]} 23. e5+ {[%clk 0:00:26]}  Kxe5 {[%clk 0:00:43]} 24. Qxg6 {[%clk 0:00:26]} 1-0

[Event "December 5 Early 2023"]
[Site "https://www.chess.com"]
[Date "2023.12.05"]
[Round "8"]
[White "Iljin, Timofey"]
[Black "Skibbe, Willi"]
[Result "1-0"]
[Board "128"]
[TimeControl "180+1"]
[WhiteFideId "14110180"]
[BlackFideId "4682190"]
[WhiteElo "2469"]
[BlackElo "2319"]
[WhiteTeam "UKR"]
[BlackTeam "GER"]
[WhiteClock "0:00:07"]
[BlackClock "0:00:07"]

1. e4 {[%clk 0:03:00]}  e6 {[%clk 0:03:00]} 2. d4 {[%clk 0:03:00]}  d5 {[%clk 0:03:00]} 3. Nc3 {[%clk 0:03:01]}  Nf6 {[%clk 0:03:00]} 4. Bg5 {[%clk 0:03:01]}  dxe4 {[%clk 0:03:00]} 5. Nxe4 {[%clk 0:03:01]}  Be7 {[%clk 0:03:01]} 6. Bxf6 {[%clk 0:03:01]}  gxf6 {[%clk 0:03:01]} 7. Nf3 {[%clk 0:03:02]}  a6 {[%clk 0:03:02]} 8. c4 {[%clk 0:02:57]}  b6 {[%clk 0:02:39]} 9. Bd3 {[%clk 0:02:54]}  Bb7 {[%clk 0:02:38]} 10. Nc3 {[%clk 0:02:51]}  Nc6 {[%clk 0:02:29]} 11. d5 {[%clk 0:02:34]}  Nb4 {[%clk 0:02:23]} 12. O-O {[%clk 0:02:21]}  exd5 {[%clk 0:02:21]} 13. Bf5 {[%clk 0:02:05]}  dxc4 {[%clk 0:02:15]} 14. Qe2 {[%clk 0:02:05]}  Nd3 {[%clk 0:02:05]} 15. Rad1 {[%clk 0:01:51]}  O-O {[%clk 0:01:47]} 16. Ng5 {[%clk 0:01:14]}  Nf4 {[%clk 0:01:10]} 17. Qg4 {[%clk 0:01:13]}  fxg5 {[%clk 0:01:10]} 18. Rxd8 {[%clk 0:01:10]}  Raxd8 {[%clk 0:01:10]} 19. Be4 {[%clk 0:00:44]}  f5 {[%clk 0:01:08]} 20. Qg3 {[%clk 0:00:26]}  Bxe4 {[%clk 0:00:59]} 21. h4 {[%clk 0:00:13]}  Bd6 {[%clk 0:00:55]} 22. Qxg5+ {[%clk 0:00:13]}  Kh8 {[%clk 0:00:53]} 23. Nxe4 {[%clk 0:00:11]}  fxe4 {[%clk 0:00:53]} 24. g3 {[%clk 0:00:11]}  Ne6 {[%clk 0:00:39]} 25. Qe3 {[%clk 0:00:07]}  Nc5 {[%clk 0:00:36]} 26. h5 {[%clk 0:00:07]}  Be5 {[%clk 0:00:30]} 27. h6 {[%clk 0:00:07]}  Rf3 {[%clk 0:00:28]} 28. Qg5 {[%clk 0:00:07]}  Bf6 {[%clk 0:00:24]} 29. Qg4 {[%clk 0:00:05]}  Rg8 {[%clk 0:00:23]} 30. Qh3 {[%clk 0:00:05]}  e3 {[%clk 0:00:20]} 31. Kg2 {[%clk 0:00:05]}  Rxf2+ {[%clk 0:00:11]} 32. Rxf2 {[%clk 0:00:06]}  exf2 {[%clk 0:00:12]} 33. Kxf2 {[%clk 0:00:05]}  Ne4+ {[%clk 0:00:11]} 34. Ke1 {[%clk 0:00:03]}  Rxg3 {[%clk 0:00:08]} 35. Qc8+ {[%clk 0:00:03]}  Rg8 {[%clk 0:00:08]} 36. Qf5 {[%clk 0:00:03]}  Re8 {[%clk 0:00:07]} 37. Kd1 {[%clk 0:00:02]}  Kg8 {[%clk 0:00:05]} 38. Qd5+ {[%clk 0:00:02]}  Kf8 {[%clk 0:00:05]} 39. Qf5 {[%clk 0:00:02]}  Kf7 {[%clk 0:00:05]} 40. Qxh7+ {[%clk 0:00:02]}  Kf8 {[%clk 0:00:04]} 41. Qg6 {[%clk 0:00:02]}  Rd8+ {[%clk 0:00:04]} 42. Kc2 {[%clk 0:00:03]}  Rd2+ {[%clk 0:00:03]} 43. Kc1 {[%clk 0:00:03]}  Re2 {[%clk 0:00:03]} 44. Kd1 {[%clk 0:00:02]}  Rd2+ {[%clk 0:00:02]} 45. Ke1 {[%clk 0:00:02]}  Rd4 {[%clk 0:00:02]} 46. h7 {[%clk 0:00:02]}  Ke7 {[%clk 0:00:02]} 47. Qg8 {[%clk 0:00:01]}  Nd6 {[%clk 0:00:01]} 48. h8=Q {[%clk 0:00:02]}  Bxh8 {[%clk 0:00:02]} 49. Qxh8 {[%clk 0:00:02]}  Nf7 {[%clk 0:00:02]} 50. Qxd4 {[%clk 0:00:03]}  Nd6 {[%clk 0:00:02]} 51. Qg1 {[%clk 0:00:04]}  Kd7 {[%clk 0:00:02]} 52. Qg7+ {[%clk 0:00:04]}  Kc6 {[%clk 0:00:03]} 53. Kd2 {[%clk 0:00:05]}  b5 {[%clk 0:00:04]} 54. Qg2+ {[%clk 0:00:04]}  Kc5 {[%clk 0:00:04]} 55. Qg1+ {[%clk 0:00:03]}  Kc6 {[%clk 0:00:05]} 56. Kc3 {[%clk 0:00:04]}  b4+ {[%clk 0:00:05]} 57. Kxb4 {[%clk 0:00:04]}  a5+ {[%clk 0:00:06]} 58. Kxa5 {[%clk 0:00:04]}  Kd5 {[%clk 0:00:07]} 59. Qd1+ {[%clk 0:00:03]}  Kc5 {[%clk 0:00:07]} 60. b4+ {[%clk 0:00:03]}  cxb3 {[%clk 0:00:07]} 61. Qxb3 {[%clk 0:00:03]}  Nc4+ {[%clk 0:00:08]} 62. Ka6 {[%clk 0:00:04]}  Nd6 {[%clk 0:00:08]} 63. Qe3+ {[%clk 0:00:03]}  Kc6 {[%clk 0:00:08]} 64. a4 {[%clk 0:00:03]}  Kd7 {[%clk 0:00:08]} 65. Qh3+ {[%clk 0:00:03]}  Kc6 {[%clk 0:00:08]} 66. a5 {[%clk 0:00:04]}  Nc4 {[%clk 0:00:07]} 67. Qe6+ {[%clk 0:00:04]}  Kc5 {[%clk 0:00:08]} 68. Qh3 {[%clk 0:00:04]}  Nd6 {[%clk 0:00:07]} 69. Ka7 {[%clk 0:00:03]}  Kc6 {[%clk 0:00:08]} 70. a6 {[%clk 0:00:04]}  Kb5 {[%clk 0:00:05]} 71. Qf1+ {[%clk 0:00:03]}  Kc6 {[%clk 0:00:05]} 72. Kb8 {[%clk 0:00:04]}  Nb5 {[%clk 0:00:05]} 73. a7 {[%clk 0:00:03]}  Nxa7 {[%clk 0:00:05]} 74. Kxa7 {[%clk 0:00:04]}  Kd6 {[%clk 0:00:06]} 75. Ka6 {[%clk 0:00:05]}  c6 {[%clk 0:00:06]} 76. Kb6 {[%clk 0:00:05]}  Kd5 {[%clk 0:00:07]} 77. Qc1 {[%clk 0:00:05]}  c5 {[%clk 0:00:07]} 78. Qxc5+ {[%clk 0:00:06]}  Ke4 {[%clk 0:00:08]} 79. Qc6+ {[%clk 0:00:07]}  Kd3 {[%clk 0:00:07]} 80. Kc5 {[%clk 0:00:07]} 1-0

[Event "December 5 Early 2023"]
[Site "https://www.chess.com"]
[Date "2023.12.05"]
[Round "8"]
[White "Ozen, Metehan"]
[Black "Antonio, Jorge Carlos"]
[Result "1/2-1/2"]
[Board "129"]
[TimeControl "180+1"]
[WhiteFideId "34596054"]
[BlackFideId "113190"]
[WhiteElo "2465"]
[BlackElo "2314"]
[WhiteTeam "TUR"]
[BlackTeam "ARG"]
[WhiteClock "0:01:58"]
[BlackClock "0:02:39"]

1. d4 {[%clk 0:02:57]}  d5 {[%clk 0:02:59]} 2. Bf4 {[%clk 0:02:57]}  c6 {[%clk 0:02:59]} 3. e3 {[%clk 0:02:57]}  Nf6 {[%clk 0:03:00]} 4. Nf3 {[%clk 0:02:57]}  Bg4 {[%clk 0:02:59]} 5. Nbd2 {[%clk 0:02:56]}  e6 {[%clk 0:03:00]} 6. Bd3 {[%clk 0:02:56]}  Nbd7 {[%clk 0:02:59]} 7. h3 {[%clk 0:02:56]}  Bxf3 {[%clk 0:02:59]} 8. Nxf3 {[%clk 0:02:56]}  Be7 {[%clk 0:02:59]} 9. O-O {[%clk 0:02:56]}  O-O {[%clk 0:02:58]} 10. c3 {[%clk 0:02:56]}  Nh5 {[%clk 0:02:58]} 11. Bh2 {[%clk 0:02:56]}  f5 {[%clk 0:02:50]} 12. c4 {[%clk 0:02:53]}  Nhf6 {[%clk 0:02:49]} 13. Ne5 {[%clk 0:02:45]}  Ne4 {[%clk 0:02:47]} 14. f3 {[%clk 0:02:37]}  Nef6 {[%clk 0:02:46]} 15. Nxd7 {[%clk 0:02:35]}  Qxd7 {[%clk 0:02:45]} 16. Qe2 {[%clk 0:02:34]}  h6 {[%clk 0:02:40]} 17. Rad1 {[%clk 0:02:29]}  Bd6 {[%clk 0:02:39]} 18. Bxd6 {[%clk 0:01:58]}  Qxd6 {[%clk 0:02:39]} 1/2-1/2